Cogmind - Beta 15 @@@ ROGUE MODE // 2025.08.02 @ 18:10:51 Player: beans Result: Destroyed by G-47 Trooper with Particle Gun Performance ------------- Evolutions (2) 1000 Regions Visited (6) 1200 Robots Destroyed (25) 125 Value Destroyed (999) 999 Prototype IDs (0) 0 Alien Tech Used (0) 0 Bonus (200) 200 TOTAL SCORE: 3524 Bonus ------- Entered Garrisons 200 Cogmind --------- Core Integrity 0/550 Matter 245/300 Energy 99/100 System Corruption 0% Temperature Cool (9) Movement Core (50) Location -8/Garrison Parts ------- > --- POWER (2) -------- (None) > --- PROPULSION (2) --- (None) > --- UTILITY (4) ------ Improved Targeting Computer Improved Targeting Computer Improved Targeting Computer > --- WEAPON (3) ------- Light Assault Rifle > --- INVENTORY (5) ---- Makeshift Terrain Scanner Relay Coupler [Sentry] (23) Peak State ------------ > --- POWER ------------ Fission Core > --- PROPULSION ------- Light Treads Light Treads > --- UTILITY ---------- Improved Targeting Computer Improved Targeting Computer Improved Targeting Computer Improved Targeting Computer > --- WEAPON ----------- Heavy Assault Rifle Heavy Assault Rifle Improved Light Cannon > --- INVENTORY -------- Makeshift Terrain Scanner Assault Rifle Improved Light Cannon Makeshift Axe [Rating: 22] Favorites ----------- Power Ion Engine Engine Ion Engine Power Core Fission Core Propulsion Light Treads Treads Light Treads Utility Improved Targeting Computer Processor Improved Targeting Computer Weapon Assault Rifle Ballistic Gun Assault Rifle Ballistic Cannon Improved Light Cannon Launcher Grenade Launcher Slashing Weapon Makeshift Axe Build | -11 -10 -10 -10 -9 -8 -8 ------- Run | Yrd Mat Min Exi Min Mat Gar Slots Evolved 4 | . . . . . 4 . Power 1 | . . . . . 1 . Propulsion . | . . . . . . . Utility 2 | . . . . . 2 . Weapon 1 | . . . . . 1 . Parts Attached 19 | 5 2 . 2 2 5 3 Power 2 | 1 . . . . . 1 Engine 1 | 1 . . . . . . Core 1 | . . . . . . 1 Reactor . | . . . . . . . Propulsion 2 | 2 . . . . . . Treads 2 | 2 . . . . . . Leg . | . . . . . . . Wheel . | . . . . . . . Hover . | . . . . . . . Flight . | . . . . . . . Utility 4 | . 2 . . . 2 . Device . | . . . . . . . Storage . | . . . . . . . Processor 4 | . 2 . . . 2 . Hackware . | . . . . . . . Protection . | . . . . . . . Artifact . | . . . . . . . Weapon 11 | 2 . . 2 2 3 2 Energy Gun . | . . . . . . . Energy Cannon . | . . . . . . . Ballistic Gun 7 | 2 . . . 1 2 2 Ballistic Cannon 2 | . . . . 1 1 . Launcher 1 | . . . 1 . . . Special Weapon . | . . . . . . . Impact Weapon . | . . . . . . . Slashing Weapon 1 | . . . 1 . . . Piercing Weapon . | . . . . . . . Special Melee Weapon . | . . . . . . . Unidentified Prototypes . | . . . . . . . Parts Lost 14 | . . . 1 . 1 12 Power 2 | . . . . . . 2 Propulsion 2 | . . . . . . 2 Utility 1 | . . . . . . 1 Weapon 9 | . . . 1 . 1 7 Highest Loss Streak 9 | . . . 1 . 1 9 To Critical Strikes . | . . . . . . . Average Backups 3 | . 1 3 3 4 3 3 Power . | . . . . . . . Propulsion . | . . . . . . . Utility 1 | . 1 2 2 3 1 1 Weapon 1 | . . 1 1 1 2 2 Tool/Special . | . . . . . . . Unused Backups 2 | . . . . . . 2 Power . | . . . . . . . Propulsion . | . . . . . . . Utility 2 | . . . . . . 2 Weapon . | . . . . . . . Tool/Special . | . . . . . . . Average Slot Usage (%) 91 | . 92 100 94 96 84 81 Engine 10 | . 14 14 14 14 9 . Core 1 | . . . . . . 6 Treads 23 | . 28 28 28 28 18 12 Processor 29 | . 20 28 28 28 34 35 Ballistic Gun 15 | . 28 28 9 20 9 22 Ballistic Cannon 2 | . . . . 1 14 4 Launcher 2 | . . . 5 . . . Slashing Weapon 4 | . . . 7 2 . . Peak Build Rating 22 | 5 9 9 12 12 18 22 Average Rating 12 | 3 7 9 10 10 17 19 On Entrance 9 | . 5 9 9 12 12 18 Naked Turns . | . . . . . . . Heaviest Build 20 | 9 9 9 11 12 16 20 Greatest Support 40 | 40 40 40 40 40 40 40 Greatest Overweight (x) 2 | 2 . . . . . . Average Overweight (x) . | . . . . . . . Largest Inventory Capacity 5 | 5 5 5 5 5 5 5 Average Capacity 5 | 5 5 5 5 5 5 5 Most Carried 5 | 2 4 3 5 5 5 5 Average Carried 3 | . 1 3 3 4 3 3 Final Capacity 5 | 5 5 5 5 5 5 5 Final Carried 5 | . 3 3 5 5 4 2 Class Distribution -------------------- 75% | Mutant 24% | Gunner Dominant Class ---------------- Mutant | -10/Materials Mutant | -10/Mines Mutant | -10/Exiles Mutant | -9/Mines Gunner | -8/Materials Gunner | -8/Garrison Resources | -11 -10 -10 -10 -9 -8 -8 ----------- Run | Yrd Mat Min Exi Min Mat Gar Matter Collected 896 | 231 27 . 81 185 176 196 Remotely . | . . . . . . . Salvage Created 1049 | . 27 . 123 214 302 383 Parts 60 | . 4 . 2 19 16 19 Haulers Intercepted . | . . . . . . . Recyclers Shooed 2 | . 2 . . . . . Parts Field Recycled . | . . . . . . . Retrieved Matter . | . . . . . . . Parts Self-Destructed . | . . . . . . . Prevented . | . . . . . . . Kills | -11 -10 -10 -10 -9 -8 -8 ------- Run | Yrd Mat Min Exi Min Mat Gar Combat Hostiles Destroyed 22 | . . . . 6 7 9 Guns 13 | . . . . 5 2 6 Cannons 9 | . . . . 1 5 3 Classes Destroyed 11 | . 1 . . 5 2 3 Worker 1 | . . . . 1 . . Builder 2 | . 1 . . 1 . . Tunneler 1 | . . . . 1 . . Recycler 1 | . . . . 1 . . Swarmer 5 | . . . . 4 . 1 Grunt 6 | . . . . . 3 3 Sentry 6 | . . . . . 4 2 Specialist 1 | . . . . . . 1 Assembled 2 | . . . . 2 . . Butcher 1 | . . . . . . 1 Guerrilla 1 | . . . . . . 1 Best Kill Streak 6 | . 1 . . 6 6 3 Combat Bots Only 6 | . . . . 4 6 3 Max Kills in Single Turn 1 | . 1 . . 1 1 1 Gunslinging . | . . . . . . . Exploded . | . . . . . . . Melee . | . . . . . . . Uniques/NPCs Destroyed . | . . . . . . . Combat | -11 -10 -10 -10 -9 -8 -8 -------- Run | Yrd Mat Min Exi Min Mat Gar Hostile Shots Fired 208 | . . . . 35 30 143 Missed 61 | . . . . 9 6 46 Hits 147 | . . . . 26 24 97 Projectile 147 | . . . . 26 24 97 Critical Strikes 2 | . . . . . 2 . Damage Taken 2103 | . . . 262 224 361 1256 Core 735 | . . . 143 42 50 500 Absorbed by Shields . | . . . . . . . Core Remaining (%) 63 | 100 . . . 26 . . Volleys Fired 73 | . 7 1 3 16 12 34 Largest 3 | . 2 2 1 2 3 3 Hottest 89 | . 40 40 30 56 89 79 Shots Fired 172 | . 14 2 3 32 35 86 Gun 125 | . 14 2 . 29 11 69 Cannon 44 | . . . . 3 24 17 Launcher 3 | . . . 3 . . . Special . | . . . . . . . Kinetic 169 | . 14 2 . 32 35 86 Thermal . | . . . . . . . Explosive 3 | . . . 3 . . . Electromagnetic . | . . . . . . . Robot Hit Streak 39 | . 4 2 1 7 15 39 Robot Miss Streak 3 | . 3 1 . 2 1 3 Penetration Max . | . . . . . . . Secondary Targets 2 | . . . . 1 . 1 Max Gunslinging Chain 1 | . . . . 1 . 1 Shots Hit Robots 132 | . 8 1 10 19 24 70 Core Hits 53 | . 2 . 7 12 11 21 Critical Kills 1 | . . . . . 1 . Critical Parts Destroyed . | . . . . . . . Critical Strikes 3 | . . . . . 1 2 Destroy 1 | . . . . . 1 . Blast 1 | . . . . . . 1 Sever 1 | . . . . . . 1 Melee Attacks 31 | . . . 27 1 . 3 Impact . | . . . . . . . Slashing 31 | . . . 27 1 . 3 Piercing . | . . . . . . . Sneak Attacks 1 | . . . . 1 . . Combat Hostiles . | . . . . . . . Follow-up Attacks . | . . . . . . . Damage Inflicted 2820 | . 89 13 850 340 456 1072 Guns 1173 | . 89 13 . 233 123 715 Cannons 648 | . . . . 39 333 276 Explosions 199 | . . . 199 . . . Melee 800 | . . . 651 68 . 81 Ramming . | . . . . . . . Kinetic 1821 | . 89 13 . 272 456 991 Thermal . | . . . . . . . Explosive 199 | . . . 199 . . . Electromagnetic . | . . . . . . . Impact . | . . . . . . . Slashing 800 | . . . 651 68 . 81 Piercing . | . . . . . . . Highest Corruption 1 | . . . 1 1 . . Average Corruption 1 | . . . 1 1 . . Corruption Purged . | . . . . . . . Corruption Blocked . | . . . . . . . Effects 8 | . . . 5 3 . . Message Errors 2 | . . . 2 . . . Matter Fused 3 | . . . 1 2 . . Heat Flow Errors 1 | . . . 1 . . . Energy Discharges 1 | . . . . 1 . . Data Loss (minor) 1 | . . . 1 . . . Overload Shots . | . . . . . . . Overflow Damage 70 | . . . 42 28 . . Projectiles . | . . . . . . . Explosions . | . . . . . . . Melee 70 | . . . 42 28 . . Knockbacks 5 | . . . . . 2 3 Impact . | . . . . . . . Kinetic 5 | . . . . . 2 3 Secondary . | . . . . . . . Self-Inflicted Damage . | . . . . . . . Shots . | . . . . . . . Rammed . | . . . . . . . Targets Rammed . | . . . . . . . Kicked . | . . . . . . . Crushed . | . . . . . . . Highest Temperature 175 | . . . 175 18 126 152 Average Temperature 66 | . . . 90 16 61 68 Received Heat Transfer 632 | . . . . 20 180 432 Siege Activations . | . . . . . . . Martial Activations . | . . . . . . . Shielding Activations . | . . . . . . . Robots Disrupted . | . . . . . . . Combat Hostiles . | . . . . . . . Robots Corrupted . | . . . . . . . Combat Hostiles . | . . . . . . . Parts Fried . | . . . . . . . Impact Corruptions . | . . . . . . . Robots Melted . | . . . . . . . Combat Hostiles . | . . . . . . . Parts Melted . | . . . . . . . Heat Transferred . | . . . . . . . Parts Sabotaged . | . . . . . . . Parts Stolen . | . . . . . . . Parts Stripped . | . . . . . . . Power Chain Reactions . | . . . . . . . Alert | -11 -10 -10 -10 -9 -8 -8 ------- Run | Yrd Mat Min Exi Min Mat Gar Maximum Alert Level 1 | . . . . . . 1 Low Security (%) 77 | 100 100 100 . 100 100 44 Level 1 22 | . . . . . . 55 Level 2 . | . . . . . . . Level 3 . | . . . . . . . Level 4 . | . . . . . . . Level 5 . | . . . . . . . High Security . | . . . . . . . Max Security . | . . . . . . . Peak Influence 304 | . 5 . . 85 151 304 Initial 94 | . . . . . . 94 Average 93 | . . . . 24 51 198 Influence Increases 606 | . 6 . 5 110 195 290 Destroy 0b10 Robot/C 400 | . . . . 80 140 180 Destroy 0b10 Robot/NC 30 | . 5 . 5 20 . . Destroy Leader 60 | . . . . 10 50 . Successful Hack 4 | . . . . . 4 . Anti-Garrison Action 50 | . . . . . . 50 Destroy Structure 2 | . 1 . . . 1 . Lose Combat Pursuer 60 | . . . . . . 60 Influence Decreases 342 | . 6 . 5 110 50 171 Entered New Map 51 | . . . . . . 51 Time Decay 161 | . 6 . 5 110 40 . Lost Part 130 | . . . . . 10 120 Squads Dispatched 4 | . . . . . 4 . Investigation 1 | . . . . . 1 . Extermination . | . . . . . . . Reinforcement . | . . . . . . . Assault . | . . . . . . . Garrison 3 | . . . . . 3 . Intercept . | . . . . . . . Searches Triggered . | . . . . . . . Construction Impeded . | . . . . . . . Haulers Reinforced . | . . . . . . . Active Scanning Responses . | . . . . . . . Cargo Convoy Interrupts . | . . . . . . . Stealth | -11 -10 -10 -10 -9 -8 -8 --------- Run | Yrd Mat Min Exi Min Mat Gar Distress Signals . | . . . . . . . Communications Jammed . | . . . . . . . Distress Signals . | . . . . . . . Times Spotted 28 | . 3 . . 7 7 11 Peak Tracking Total 9 | . 2 . . 4 5 9 Tactical Retreats 2 | . . . . 1 . 1 Traps | -11 -10 -10 -10 -9 -8 -8 ------- Run | Yrd Mat Min Exi Min Mat Gar Traps Triggered 1 | . . . . . 1 . Indirectly . | . . . . . . . Trap Hack Attempts . | . . . . . . . Triggered . | . . . . . . . Disarmed . | . . . . . . . Reprogrammed . | . . . . . . . Reused . | . . . . . . . Traps Extracted . | . . . . . . . Installed . | . . . . . . . Triggered . | . . . . . . . Machines | -11 -10 -10 -10 -9 -8 -8 ---------- Run | Yrd Mat Min Exi Min Mat Gar Machines Disabled 2 | . . . 1 . . 1 Max in Single Turn 1 | . . . 1 . . 1 Garrison Relay 1 | . . . . . . 1 Machines Repaired . | . . . . . . . Machines Dismantled . | . . . . . . . Machines Sabotaged . | . . . . . . . Overloaded Fab Kills . | . . . . . . . Hacking | -11 -10 -10 -10 -9 -8 -8 --------- Run | Yrd Mat Min Exi Min Mat Gar Machines Accessed 4 | . . . 2 . 1 1 Terminals 1 | . . . . . . 1 Fabricators . | . . . . . . . Repair Stations . | . . . . . . . Recycling Units . | . . . . . . . Scanalyzers . | . . . . . . . Garrison Access 1 | . . . . . 1 . Total Hacks 35 | . . . 32 . 2 1 Successful 34 | . . . 32 . 1 1 Failed 1 | . . . . . 1 . Catastrophic . | . . . . . . . Database Lockouts . | . . . . . . . Manual . | . . . . . . . Terminals 1 | . . . . . . 1 Fabricators . | . . . . . . . Repair Stations . | . . . . . . . Recycling Units . | . . . . . . . Scanalyzers . | . . . . . . . Garrison Access 2 | . . . . . 2 . Terminal Hacks 33 | . . . 32 . . 1 Record 32 | . . . 32 . . . Open Door 1 | . . . . . . 1 Fabricator Hacks . | . . . . . . . Repair Station Hacks . | . . . . . . . Recycling Unit Hacks . | . . . . . . . Scanalyzer . | . . . . . . . Garrison Access Hacks 1 | . . . . . 1 . Unlock Access 1 | . . . . . 1 . Unauthorized Hacks . | . . . . . . . Terminals . | . . . . . . . Fabricators . | . . . . . . . Repair Stations . | . . . . . . . Recycling Units . | . . . . . . . Scanalyzers . | . . . . . . . Garrison Access . | . . . . . . . Data Cores Recovered . | . . . . . . . Used . | . . . . . . . Hacking Detections 1 | . . . . . 1 . Full Trace Events . | . . . . . . . Feedback Events . | . . . . . . . Feedback Blocked . | . . . . . . . Robot Schematics Acquired . | . . . . . . . Robots Built . | . . . . . . . Authchips . | . . . . . . . Time . | . . . . . . . Total Robot Build Rating . | . . . . . . . Part Schematics Acquired . | . . . . . . . Parts Built . | . . . . . . . Authchips . | . . . . . . . Time . | . . . . . . . Total Part Build Rating . | . . . . . . . Parts Repaired . | . . . . . . . Time . | . . . . . . . Parts Recycled . | . . . . . . . Recycled Matter . | . . . . . . . Retrieved Matter . | . . . . . . . Retrieved Components . | . . . . . . . Parts Scanalyzed . | . . . . . . . Part Schematics Acquired . | . . . . . . . Parts Damaged . | . . . . . . . Bothacking | -11 -10 -10 -10 -9 -8 -8 ------------ Run | Yrd Mat Min Exi Min Mat Gar Used RIF Installer . | . . . . . . . Robots Hacked . | . . . . . . . Non-combat . | . . . . . . . Combat . | . . . . . . . Robot Hacks Applied . | . . . . . . . Relay Couplers Released 4 | . . . . . . 4 Machine Destruction 4 | . . . . . . 4 Fabnet Peak Effective % . | . . . . . . . Robots Rewired . | . . . . . . . Allies Hacked . | . . . . . . . Hacks Repelled . | . . . . . . . Allies | -11 -10 -10 -10 -9 -8 -8 -------- Run | Yrd Mat Min Exi Min Mat Gar Total Allies . | . . . . . . . Largest Group . | . . . . . . . Highest-Rated Group . | . . . . . . . Highest-Rated Ally . | . . . . . . . Total Orders . | . . . . . . . Ally Attacks . | . . . . . . . Total Damage . | . . . . . . . Kills . | . . . . . . . Allies Corrupted . | . . . . . . . Allies Melted . | . . . . . . . Intel | -11 -10 -10 -10 -9 -8 -8 ------- Run | Yrd Mat Min Exi Min Mat Gar Active Infowar (turns) . | . . . . . . . Robot Analysis Total . | . . . . . . . Derelict Logs Recovered 1 | . . . . 1 . . Drone Launches . | . . . . . . . Drone Recoveries . | . . . . . . . Exploration | -11 -10 -10 -10 -9 -8 -8 ------------- Run | Yrd Mat Min Exi Min Mat Gar Turns Passed 2712 | 70 105 112 1306 369 177 573 Spaces Moved 1480 | 46 49 69 769 196 81 270 Core 31 | 23 . . . . . 8 Treads 1449 | 23 49 69 769 196 81 262 Legs . | . . . . . . . Wheels . | . . . . . . . Hover . | . . . . . . . Flight . | . . . . . . . Fastest Speed 50 | 50 160 160 160 160 160 50 Average Speed 158 | 132 160 160 160 160 160 156 Slowest Speed 160 | 160 160 160 160 160 160 160 Overloaded Moves . | . . . . . . . Propulsion Burnouts . | . . . . . . . Robots Hopped . | . . . . . . . Potential Cave-ins 2 | . . . 2 . . . Cave-ins Triggered 1 | . . . 1 . . . Exploration Rate (%) 32 | 3 17 24 92 51 8 30 Regions Visited 6 Branch Regions 3 Pre-discovered Areas 1 | . . . 1 . . . Known Exits Taken 1 | . . . . . 1 . Unknown Exits Taken 5 | 1 1 1 1 1 . . Scrap Searched 1 | . . . . 1 . . Spaces Dug 5 | . . . 5 . . . Terrain Destroyed 15 | . . . 14 . 1 . Melee 2 | . . . 2 . . . Projectile 1 | . . . . . 1 . AOE 12 | . . . 12 . . . Terrain Rammed . | . . . . . . . Walls Destroyed . | . . . . . . . Machines Disabled . | . . . . . . . Actions | -11 -10 -10 -10 -9 -8 -8 --------- Run | Yrd Mat Min Exi Min Mat Gar Total 1670 | 55 62 69 814 218 101 351 Wait 46 | . . . 12 . . 34 Move 1474 | 45 48 68 767 195 81 270 Hop . | . . . . . . . Pick Up 20 | 5 5 . 2 1 3 4 Fast Attach . | . . . . . . . Attach 18 | 5 2 . . 1 4 6 Detach . | . . . . . . . Swap 6 | . . . 2 3 1 . Drop 1 | . . . . 1 . . Fire 73 | . 7 1 3 16 12 34 Melee 31 | . . . 27 1 . 3 Ram . | . . . . . . . Kick . | . . . . . . . Crush . | . . . . . . . Escape Stasis 1 | . . . 1 . . . Rewire . | . . . . . . . Trap . | . . . . . . . Miscellaneous . | . . . . . . . Route ------- -11/Scrapyard -10/Materials -10/Mines -10/Exiles -9/Mines -8/Materials -8/Garrison History --------- Turn | Location | Event 3 | -11/Scrapyard | Discovered new exit (range 14) 71 | -11/Scrapyard | Entered Materials 136 | -10/Materials | Discovered new exit (range 15) 176 | -10/Materials | Entered Mines 282 | -10/Mines | Deemed a non-threat by the Exiles lab entrance 282 | -10/Mines | Discovered new exit (range 5) 288 | -10/Mines | Entered Exiles 288 | -10/Exiles | Found Exiles lab destroyed 310 | -10/Exiles | Build established: Mutant 1001 | -10/Exiles | Learned location of Zion (-7) 1127 | -10/Exiles | Crushed by falling debris 1128 | -10/Exiles | Core integrity fell below 50% 1577 | -10/Exiles | Discovered new exit (range 10) 1594 | -10/Exiles | Entered Mines 1624 | -9/Mines | Learned Materials interactive machine intel 1709 | -9/Mines | Assembled infested the area 1939 | -9/Mines | Discovered new exit (range 16) 1963 | -9/Mines | Entered Materials 1963 | -8/Materials | Evolved 4 slots: Power x1, Utility x2, Weapon x1 1964 | -8/Materials | Loaded intel: 16 interactive machine locations 2140 | -8/Materials | Identified exit to Garrison 2140 | -8/Materials | Entered Garrison 2364 | -8/Garrison | Triggered checkpoint 2417 | -8/Garrison | Build established: Gunner 2531 | -8/Garrison | Garrison Relay disabled 2656 | -8/Garrison | Triggered checkpoint 2691 | -8/Garrison | Core integrity fell below 50% 2700 | -8/Garrison | Core integrity fell below 20% 2713 | -8/Garrison | Destroyed by G-47 Trooper with Particle Gun Last Messages --------------- Acquired 3 matter. Beams of light sweep through the air. An alarm sounds. Garrison Door activated. S-10 Pest destroyed. Switching to secondary target: G-47 Trooper. Assault Rifle destroyed. Lgt. Treads destroyed. Imp. Light Cannon destroyed. Fission Core destroyed. Hvy. Assault Rifle destroyed. Imp. Targeting Computer destroyed. X-57 Shotgunner Imp. Heat Sink severed. Mak. Axe destroyed. S-10 Pest destroyed. Acquired Lgt. Assault Rifle. S-10 Pest destroyed. Acquired Lgt. Assault Rifle. X-57 Shotgunner destroyed. Lgt. Assault Rifle destroyed. Map ----- +----------------------------------------------------+ | ?????????????????????????????????????????????????? | | ?????????????????????????????????????????????????? | | ?????????????????????????????????????????????????? | | ?????????????????????????????????????????????????? | | ?????????????????????????????????????????????????? | | ?????????????????????????????????????????????????? | | ?????????????????????????????????????????????????? | | ?????????????????????????????????????????????????? | | ?????????????????????????????????????????????????? | | ?????????????????????????????????????????????????? | | ??????????????????????? ?????????????????????????? | | ??????????????????????# ????????????????????????? | | ??????????????????????# ????????????????????????? | | ??????????????????????# #???????????????????????? | | ??????????????????????# #???????? #?????????????? | | ??????????????????????# ^#??????? #?????????????? | | ?????????????????????## ##?"""## #?????????????? | | ???????????????????### ?? ??????????????? | | ???????????????????? ?? ???????????????? | | ????????????????????? ? ? #????????????? | | ?????????????????????# #? #? #????????????? | | ???????????????????### ## ## #????????????? | | ???????????????????# "????????????? | | ???????????????????# "????????????? | | ???????????????????# "????????????? | | ???????????????????# *= @ "????????????? | | ???????????????????###!%g## ## #????????????? | | ?????????????????????#g=%## ## #????????????? | | ?????????????????????# =* #????????????? | | ?????????????????????# #????????????? | | ?????????????????????# #????????????? | | ?????????????????????## ## ## #????????????? | | ??????????????????????# #? #??? #????????????? | | ??????????????????????# #??####?????????????????? | | ??????????????????????# #???????????????????????? | | ??????????????????????# #???????????????????????? | | ??????????????????????# #???????????????????????? | | ???????????????###????# #???????????????????????? | | ################T###### #???????????????????????? | | #???????????????????????? | | #???????????????????????? | | ######### #???????????????????????? | | #???????# #???????????????????????? | | ######??# #???????????????????????? | | ##%==#??# #???????????????????????? | | ##%*%#??# #???????????????????????? | | ##%!##??# #???????????????????????? | | # %T#??# #???????????????????????? | | !#!! %#??# #???????????????????????? | | =%!%[ #??# #???????????????????????? | +----------------------------------------------------+ Best States ------------- Heat Dissipation 31 Energy Generation 18 Energy Capacity 310 Matter Stores 300 Matter Capacity 300 Sight Range 16 Terrain Scan Density 10 Evasion (%) 40 Targeting Accuracy 24 Recoil Reduction 2 Item Schematics ----------------- None Robot Schematics ------------------ None Fabricated ------------ Nothing Repaired ---------- Nothing Alien Tech Used ----------------- None Achievements -------------- None Challenges ------------ None Game ------ Seed PersonalElectronMembrane Manual? 0 Play Time 00:11:45 Cumulative 77.5 hours Start 2025.08.02 @ 17:59:13 End 2025.08.02 @ 18:10:51 Sessions 1 Manual Loads 0 Difficulty Rogue Special Mode None Game No. 314 Rogue 314 Adventurer 0 Explorer 0 Win Type - Total 0 Types 0/0/0/0/0/0/0/0/0/0 Lore% 28 Gallery% 34 Achievement% 28 Wizard Run 0 Options --------- Layout 2 ASCII 0 Keyboard 0 Movement Mouse Keybinds 0 Fullscreen 2 Font 24/Smallcaps Map View 50x44 Zoom Use 0% Tactical HUD 0 Map Filters NONE Filters NONE Steam 1 RUN: 3314ae66-8885-4cf8-b0f0-4b5b6ba673b2